fUST/lending_fUST_20250715
["ID","MTS","AMOUNT","RATE_DAILY","PERIOD"]
[372134899,1752535834455,-460.0,0.00021917,3]
[372134900,1752535834465,-460.0,0.00021917,3]
[372134901,1752535834475,-460.0,0.00021917,3]
[372134902,1752535834485,-460.0,0.00021917,3]
[372134903,1752535834496,-460.0,0.00021917,3]
[372134904,1752535834506,-460.0,0.00021917,3]
[372134905,1752535834515,-460.0,0.00021917,3]
[372134906,1752535834524,-460.0,0.00021917,3]
[372134907,1752535834534,-667.94,0.00021917,3]
[372134908,1752535834543,-504.03050203,0.00021917,3]
[372134909,1752535834553,-460.0,0.00021917,3]
[372134910,1752535834562,-517.26472086,0.00021917,3]
[372134911,1752535834572,-460.0,0.00021917,3]
[372134912,1752535834581,-460.0,0.00021917,3]
[372134913,1752535834591,-473.87,0.00021917,3]
[372134914,1752535834601,-460.0,0.00021917,3]
[372134915,1752535834611,-460.0,0.00021917,3]
[372134916,1752535834620,-460.0,0.00021917,3]
[372134917,1752535834630,-577.17,0.00021917,3]
[372134918,1752535834639,-819.09,0.00021917,3]
[372134919,1752535834649,-460.0,0.00021917,3]
[372134920,1752535834659,-460.0,0.00021917,3]
[372134921,1752535834668,-713.63,0.00021917,3]
[372134922,1752535834678,-736.64,0.00021917,3]
[372134923,1752535834689,-460.0,0.00021917,3]
[372134924,1752535834699,-460.0,0.00021917,3]
[372134925,1752535834708,-460.0,0.00021917,3]
[372134926,1752535834718,-460.0,0.00021917,3]
[372134927,1752535834727,-460.0,0.00021917,3]
[372134928,1752535834739,-460.0,0.00021917,3]
[372134929,1752535834752,-460.0,0.00021917,3]
[372134930,1752535834764,-464.81,0.00021917,3]
[372134931,1752535834775,-460.0,0.00021917,3]
[372134932,1752535834785,-460.0,0.00021917,3]
[372134933,1752535834795,-460.0,0.00021917,3]
[372134934,1752535834804,-460.0,0.00021917,3]
[372134935,1752535834815,-460.0,0.00021917,3]
[372134937,1752535834824,-460.0,0.00021917,3]
[372134938,1752535834834,-460.0,0.00021917,3]
[372134939,1752535834843,-460.0,0.00021917,3]
[372134940,1752535834853,-460.0,0.00021917,3]
[372134941,1752535834863,-460.0,0.00021917,3]
[372134942,1752535834874,-460.0,0.00021917,3]
[372134943,1752535834884,-460.0,0.00021917,3]
[372134944,1752535834894,-595.96505135,0.00021917,3]
[372134945,1752535834907,-460.0,0.00021917,3]
[372134946,1752535834917,-151.0,0.00021917,3]
[372134947,1752535834927,-460.0,0.00021917,3]
[372134948,1752535834936,-460.0,0.00021917,3]
[372134949,1752535834947,-460.0,0.00021917,3]
[372134950,1752535834956,-460.0,0.00021917,3]
[372134951,1752535834966,-460.0,0.00021917,3]
[372134952,1752535834976,-460.0,0.00021917,3]
[372134953,1752535834986,-460.0,0.00021917,3]
[372134954,1752535834996,-460.0,0.00021917,3]
[372134955,1752535835006,-460.0,0.00021917,3]
[372134956,1752535835016,-151.0,0.00021917,2]
[372134957,1752535835025,-151.0,0.00021917,3]
[372134958,1752535835035,-460.0,0.00021917,3]
[372134959,1752535835045,-460.0,0.00021917,3]
[372134960,1752535835054,-460.0,0.00021917,3]
[372134961,1752535835066,-460.0,0.00021917,3]
[372134962,1752535835076,-460.0,0.00021917,3]
[372134963,1752535835086,-460.0,0.00021917,3]
[372134964,1752535835096,-460.0,0.00021917,3]
[372134965,1752535835106,-460.0,0.00021917,3]
[372134966,1752535835115,-603.01228799,0.00021917,3]
[372134967,1752535835124,-460.0,0.00021917,3]
[372134968,1752535835134,-558.8217057,0.00021917,3]
[372134969,1752535835144,-460.0,0.00021917,3]
[372134970,1752535835153,-460.0,0.00021917,3]
[372134971,1752535835163,-460.0,0.00021917,3]
[372134972,1752535835172,-460.0,0.00021917,3]
[372134973,1752535835182,-460.0,0.00021917,3]
[372134974,1752535835191,-460.0,0.00021917,3]
[372134975,1752535835200,-460.0,0.00021917,3]
[372134976,1752535835210,-460.0,0.00021917,3]
[372134977,1752535835220,-460.0,0.00021917,3]
[372134978,1752535835229,-460.0,0.00021917,3]
[372134979,1752535835239,-460.0,0.00021917,3]
[372134980,1752535835249,-460.0,0.00021917,3]
[372134981,1752535835258,-460.0,0.00021917,3]
[372134982,1752535835267,-460.0,0.00021917,3]
[372134983,1752535835276,-519.24,0.00021917,3]
[372134984,1752535835286,-460.0,0.00021917,3]
[372134985,1752535835296,-460.0,0.00021917,3]
[372134986,1752535835305,-460.0,0.00021917,3]
[372134987,1752535835316,-460.0,0.00021917,3]
[372134988,1752535835326,-1083.24,0.00021917,3]
[372134989,1752535835336,-224.30436686,0.00021917,3]
[372134990,1752535835346,-912.37,0.00021917,3]
[372134991,1752535835355,-460.0,0.00021917,3]
[372134992,1752535835366,-460.0,0.00021917,3]
[372134993,1752535835375,-460.0,0.00021917,3]
[372134994,1752535835384,-460.0,0.00021917,3]
[372134995,1752535835394,-460.0,0.00021917,3]
[372134996,1752535835403,-460.0,0.00021917,3]
[372134997,1752535835414,-460.45,0.00021917,3]
[372134998,1752535835423,-460.0,0.00021917,3]
[372134999,1752535835433,-606.57,0.00021917,3]
[372135000,1752535835442,-460.0,0.00021917,3]
[372135001,1752535835452,-460.0,0.00021917,3]
[372135002,1752535835462,-460.0,0.00021917,3]
[372135003,1752535835472,-460.0,0.00021917,3]
[372135004,1752535835481,-460.0,0.00021917,3]
[372135005,1752535835491,-214.33456592,0.00021917,3]
[372135006,1752535835501,-460.0,0.00021917,3]
[372135007,1752535835511,-460.0,0.00021917,3]
[372135008,1752535835521,-460.0,0.00021917,3]
[372135009,1752535835531,-461.27021462,0.00021917,3]
[372135010,1752535835541,-1606.21,0.00021917,3]
[372135011,1752535835551,-460.0,0.00021917,3]
[372135012,1752535835561,-2115.15,0.00021917,3]
[372135013,1752535835674,-460.0,0.00021917,3]
[372135014,1752535835684,-460.0,0.00021917,3]
[372135015,1752535835694,-460.0,0.00021917,3]
[372135016,1752535835704,-460.0,0.00021917,3]
[372135017,1752535835713,-460.0,0.00021917,3]
[372135018,1752535835722,-460.0,0.00021917,3]
[372135019,1752535835731,-460.0,0.00021917,3]
[372135020,1752535835741,-460.0,0.00021917,3]
[372135021,1752535835750,-46.032651,0.00021917,3]
[372135022,1752535835768,-865.44487128,0.00021917,3]
[372135023,1752535835780,-965.95504081,0.00021917,3]
[372135024,1752535835791,-2990.92743691,0.00021917,3]
[372135025,1752535835801,-460.0,0.00021917,3]
[372135026,1752535835811,-460.0,0.00021917,3]
[372135027,1752535835821,-252.99633849,0.00021917,3]
[372135028,1752535835830,-460.0,0.00021917,3]
[372135029,1752535835840,-460.0,0.00021917,3]
[372135030,1752535835849,-460.0,0.00021917,3]
[372135031,1752535835859,-460.0,0.00021917,3]
[372135032,1752535835868,-460.0,0.00021917,3]
[372135033,1752535835878,-1544.94,0.00021917,3]
[372135034,1752535835887,-460.0,0.00021917,3]
[372135035,1752535835899,-501.06297882,0.00021917,3]
[372135036,1752535835909,-553.71,0.00021917,3]
[372135037,1752535835918,-460.0,0.00021917,3]
[372135038,1752535835927,-460.0,0.00021917,3]
[372135039,1752535835939,-3142.58,0.00021917,3]
[372135040,1752535835948,-460.0,0.00021917,3]
[372135041,1752535835957,-460.0,0.00021917,3]
[372135042,1752535835967,-480.03345279,0.00021917,3]
[372135043,1752535835978,-460.0,0.00021917,3]
[372135044,1752535835988,-460.0,0.00021917,3]
[372135045,1752535835997,-460.0,0.00021917,3]
[372135046,1752535836007,-460.0,0.00021917,3]
[372135047,1752535836016,-460.0,0.00021917,3]
[372135048,1752535836025,-460.0,0.00021917,3]
[372135049,1752535836035,-704.86,0.00021917,3]
[372135050,1752535836044,-160.0,0.00021917,3]
[372135051,1752535836053,-696.25,0.00021917,3]
[372135052,1752535836062,-356.92758961,0.00021917,3]
[372135053,1752535836071,-460.0,0.00021917,3]
[372135054,1752535836081,-460.0,0.00021917,3]
[372135055,1752535836090,-627.7,0.00021917,3]
[372135056,1752535836100,-1892.71,0.00021917,3]
[372135057,1752535836109,-460.0,0.00021917,3]
[372135058,1752535836118,-3695.6,0.00021917,3]
[372135059,1752535836128,-460.0,0.00021917,3]
[372135060,1752535836137,-1223.52,0.00021917,3]
[372135061,1752535836146,-460.0,0.00021917,3]
[372135062,1752535836156,-460.0,0.00021917,3]
[372135063,1752535836165,-460.0,0.00021917,3]
[372135064,1752535836175,-460.0,0.00021917,3]
[372135065,1752535836184,-460.0,0.00021917,3]
[372135066,1752535836193,-460.0,0.00021917,3]
[372135067,1752535836202,-1200.92,0.00021917,3]
[372135068,1752535836212,-460.0,0.00021917,3]
[372135069,1752535836221,-460.0,0.00021917,3]
[372135070,1752535836230,-460.0,0.00021917,3]
[372135071,1752535836240,-460.0,0.00021917,3]
[372135072,1752535836249,-543.84,0.00021917,3]
[372135073,1752535836258,-689.12,0.00021917,3]
[372135074,1752535836268,-460.0,0.00021917,3]
[372135075,1752535836278,-460.0,0.00021917,3]
[372135076,1752535836287,-460.0,0.00021917,3]
[372135077,1752535836297,-401.06211335,0.00021917,3]
[372135078,1752535836307,-460.0,0.00021917,3]
[372135079,1752535836317,-595.09,0.00021917,3]
[372135080,1752535836328,-460.0,0.00021917,3]
[372135081,1752535836337,-2706.65,0.00021917,3]
[372135082,1752535836346,-2018.22,0.00021917,3]
[372135083,1752535836356,-460.0,0.00021917,3]
[372135084,1752535836367,-460.0,0.00021917,3]
[372135085,1752535836376,-460.0,0.00021917,3]
[372135086,1752535836386,-460.0,0.00021917,3]
[372135087,1752535836396,-460.0,0.00021917,3]
[372135088,1752535836406,-460.0,0.00021917,3]
[372135089,1752535836416,-2769.95,0.00021917,3]
[372135090,1752535836427,-460.0,0.00021917,3]
[372135091,1752535836436,-460.0,0.00021917,3]
[372135092,1752535836446,-460.0,0.00021917,3]
[372135093,1752535836456,-460.0,0.00021917,3]
[372135094,1752535836466,-460.0,0.00021917,3]
[372135095,1752535836475,-460.0,0.00021917,3]
[372135096,1752535836485,-460.0,0.00021917,3]
[372135097,1752535836495,-460.0,0.00021917,3]
[372135098,1752535836504,-460.0,0.00021917,3]
[372135099,1752535836514,-460.0,0.00021917,3]
[372135100,1752535836523,-377.42,0.00021917,3]
[372135101,1752535836533,-460.0,0.00021917,3]
[372135102,1752535836542,-12600.81778503,0.00021917,3]
[372135103,1752535836552,-460.0,0.00021917,3]
[372135104,1752535836563,-460.0,0.00021917,3]
[372135105,1752535836573,-460.0,0.00021917,3]
[372135106,1752535836582,-460.0,0.00021917,3]
[372135107,1752535836592,-526.5,0.00021917,3]
[372135108,1752535836601,-460.0,0.00021917,3]
[372135109,1752535836612,-460.0,0.00021917,3]
[372135110,1752535836622,-460.0,0.00021917,3]
[372135111,1752535836631,-460.0,0.00021917,3]
[372135112,1752535836640,-460.0,0.00021917,3]
[372135113,1752535836649,-460.0,0.00021917,3]
[372135114,1752535836660,-2506.19,0.00021917,3]
[372135115,1752535836670,-460.0,0.00021917,3]
[372135116,1752535836680,-599.17,0.00021917,3]
[372135117,1752535836690,-460.0,0.00021917,3]
[372135118,1752535836699,-1834.72,0.00021917,3]
[372135119,1752535836709,-4260.87,0.00021917,3]
[372135120,1752535836718,-460.0,0.00021917,3]
[372135121,1752535836727,-745.24,0.00021917,3]
[372135122,1752535836737,-460.0,0.00021917,3]
[372135123,1752535836746,-460.0,0.00021917,3]
[372135124,1752535836755,-328.73431819,0.00021917,3]
[372135125,1752535836765,-460.0,0.00021917,3]
[372135126,1752535836774,-460.0,0.00021917,3]
[372135127,1752535836783,-460.0,0.00021917,3]
[372135128,1752535836792,-460.0,0.00021917,3]
[372135129,1752535836802,-460.0,0.00021917,3]
[372135130,1752535836811,-460.0,0.00021917,3]
[372135131,1752535836822,-460.0,0.00021917,3]
[372135132,1752535836832,-460.0,0.00021917,3]
[372135133,1752535836841,-1020.43,0.00021917,3]
[372135134,1752535836853,-460.0,0.00021917,3]
[372135135,1752535836863,-526.53,0.00021917,3]
[372135136,1752535836872,-465.86622321,0.00021917,3]
[372135137,1752535836882,-875.21,0.00021917,3]
[372135138,1752535836891,-460.0,0.00021917,3]
[372135139,1752535836905,-507.81,0.00021917,3]
[372135140,1752535836914,-460.0,0.00021917,3]
[372135141,1752535836924,-460.0,0.00021917,3]
[372135142,1752535836934,-506.06,0.00021917,3]
[372135143,1752535836945,-460.0,0.00021917,3]
[372135144,1752535836955,-460.0,0.00021917,3]
[372135145,1752535836964,-460.0,0.00021917,3]
[372135146,1752535836976,-460.0,0.00021917,3]
[372135147,1752535836985,-460.0,0.00021917,3]
[372135148,1752535836995,-460.0,0.00021917,3]
[372135149,1752535837006,-460.0,0.00021917,3]
[372135150,1752535837015,-460.0,0.00021917,3]
[372135151,1752535837025,-150.0,0.00021918,2]
[372135152,1752535837034,-151.0,0.00021944,3]
[372135153,1752535837045,-220.91569008,0.00021951,2]
[372135154,1752535837055,-312.0,0.00021959,2]
[372135155,1752535837064,-895.72251615,0.00021969,6]
[372135156,1752535837074,-198.0,0.00021972,3]
[372135157,1752535837083,-195.6451407,0.00021973,2]
[372135158,1752535837094,-500.0,0.00021973,2]
[372135159,1752535837103,-500.0,0.00021973,2]
[372135160,1752535837112,-301.0,0.00021973,2]
[372135161,1752535837122,-500.0,0.00021973,2]
[372135162,1752535837131,-499.94106225,0.00021973,2]
[372135163,1752535837140,-319.42525985,0.00021973,2]
[372135164,1752535837150,-500.0,0.00021973,2]
[372135165,1752535837160,-500.0,0.00021973,2]
[372135166,1752535837169,-12768.32449211,0.00021991,3]
[372135167,1752535837179,-21945.72,0.00022,7]
[372135168,1752535837188,-214.33456592,0.00022,7]
[372135169,1752535837197,-151.0,0.00022,2]
[372135170,1752535837207,-2488.98430347,0.00022,2]
[372135193,1752535838832,-380.96064391,0.00021917,3]
[372135195,1752535838841,-460.0,0.00021917,3]
[372135197,1752535838850,-460.0,0.00021917,3]
[372135199,1752535838859,-460.0,0.00021917,3]
[372135201,1752535838868,-7511.01569635,0.00022,2]
[372135203,1752535838877,-406.0,0.00022,2]
[372135205,1752535838887,-46138.94144394,0.00022091,2]
[372135207,1752535838898,-496.89914219,0.00022173,2]
[372135209,1752535838909,-500.0,0.00022173,2]
[372135211,1752535838918,-500.0,0.00022173,2]
[372135213,1752535838928,-500.0,0.00022173,2]
[372135215,1752535838937,-502.51817603,0.00022173,2]
[372135217,1752535838947,-500.0,0.00022173,2]
[372135219,1752535838956,-500.0,0.00022173,2]
[372135221,1752535838965,-460.0,0.00022191,3]
[372135223,1752535838977,-460.0,0.00022191,3]
[372135225,1752535838987,-460.0,0.00022191,3]
[372135227,1752535838996,-460.0,0.00022191,3]
[372135229,1752535839006,-460.0,0.00022191,3]
[372135231,1752535839015,-460.0,0.00022191,3]
[372135233,1752535839025,-460.0,0.00022191,3]
[372135235,1752535839034,-460.0,0.00022191,3]
[372135237,1752535839042,-460.0,0.00022191,3]
[372135239,1752535839052,-460.0,0.00022191,3]
[372135241,1752535839061,-460.0,0.00022191,3]
[372135243,1752535839072,-460.0,0.00022191,3]
[372135245,1752535839081,-460.0,0.00022191,3]
[372135247,1752535839090,-460.0,0.00022191,3]
[372135249,1752535839100,-460.0,0.00022191,3]
[372135251,1752535839109,-472.73915998,0.00022191,3]
[372135253,1752535839119,-460.0,0.00022191,3]
[372135255,1752535839128,-460.0,0.00022191,3]
[372135267,1752535839137,-460.0,0.00022191,3]
[372135269,1752535839245,-460.0,0.00022191,3]
[372135271,1752535839255,-259.83,0.00022191,3]
[372135273,1752535839265,-460.0,0.00022191,3]
[372135275,1752535839274,-460.0,0.00022191,3]
[372135277,1752535839284,-460.0,0.00022191,3]
[372135279,1752535839293,-460.0,0.00022191,3]
[372135281,1752535839302,-460.0,0.00022191,3]
[372135283,1752535839312,-460.0,0.00022191,3]
[372135285,1752535839322,-460.0,0.00022191,3]
[372135287,1752535839332,-460.0,0.00022191,3]
[372135289,1752535839341,-460.0,0.00022191,3]
[372135291,1752535839351,-460.0,0.00022191,3]
[372135293,1752535839360,-883.99,0.00022191,3]
[372135295,1752535839370,-460.0,0.00022191,3]
[372135297,1752535839379,-460.0,0.00022191,3]
[372135299,1752535839389,-460.0,0.00022191,3]
[372135301,1752535839398,-565.22675693,0.00022191,3]
[372135303,1752535839407,-202.64,0.00022191,3]
[372135305,1752535839417,-460.0,0.00022191,3]
[372135307,1752535839427,-460.0,0.00022191,3]
[372135309,1752535839436,-460.0,0.00022191,3]
[372135311,1752535839445,-460.0,0.00022191,3]
[372135313,1752535839455,-460.0,0.00022191,3]
[372135315,1752535839464,-460.0,0.00022191,3]
[372135317,1752535839474,-460.0,0.00022191,3]
[372135319,1752535839483,-460.0,0.00022191,3]
[372135321,1752535839492,-460.0,0.00022191,3]
[372135323,1752535839503,-480.2,0.00022191,3]
[372135325,1752535839513,-460.0,0.00022191,3]
[372135327,1752535839523,-460.0,0.00022191,3]
[372135329,1752535839532,-460.0,0.00022191,3]
[372135330,1752535839543,-460.0,0.00022191,3]
[372135332,1752535839552,-460.0,0.00022191,3]
[372135334,1752535839563,-460.0,0.00022191,3]
[372135336,1752535839576,-460.0,0.00022191,3]
[372135338,1752535839586,-460.0,0.00022191,3]
[372135341,1752535839599,-460.0,0.00022191,3]
[372135343,1752535839610,-462.18647382,0.00022191,3]
[372135345,1752535839620,-460.0,0.00022191,3]
[372135347,1752535839630,-460.0,0.00022191,3]
[372135348,1752535839639,-460.0,0.00022191,3]
[372135350,1752535839649,-460.0,0.00022191,3]
[372135352,1752535839658,-460.0,0.00022191,3]
[372135354,1752535839668,-460.0,0.00022191,3]
[372135356,1752535839677,-460.0,0.00022191,3]
[372135358,1752535839686,-460.0,0.00022191,3]
[372135360,1752535839695,-460.0,0.00022191,3]
[372135361,1752535839705,-667.94,0.00022191,3]
[372135363,1752535839714,-460.0,0.00022191,3]
[372135365,1752535839723,-460.0,0.00022191,3]
[372135367,1752535839733,-460.0,0.00022191,3]
[372135369,1752535839743,-460.0,0.00022191,3]
[372135371,1752535839752,-460.0,0.00022191,3]
[372135373,1752535839761,-819.09,0.00022191,3]
[372135375,1752535839770,-460.0,0.00022191,3]
[372135377,1752535839780,-460.0,0.00022191,3]
[372135379,1752535839789,-713.63,0.00022191,3]
[372135381,1752535839799,-736.64,0.00022191,3]
[372135383,1752535839809,-460.0,0.00022191,3]
[372135385,1752535839823,-269.39049778,0.00022191,3]
[372135387,1752535839832,-460.0,0.00022191,3]
[372135388,1752535839841,-328.44699189,0.00022191,3]
[372135390,1752535839851,-460.0,0.00022191,3]
[372135392,1752535839861,-464.81,0.00022191,3]
[372135394,1752535839870,-460.0,0.00022191,3]
[372135396,1752535839880,-460.0,0.00022191,3]
[372135398,1752535839889,-320.54000061,0.00022191,3]
[372135400,1752535839900,-460.0,0.00022191,3]
[372135402,1752535839910,-460.0,0.00022191,3]
[372135404,1752535839920,-460.0,0.00022191,3]
[372135406,1752535839929,-460.0,0.00022191,3]
[372135408,1752535839939,-460.0,0.00022191,3]
[372135410,1752535839949,-535.70950618,0.00022191,3]
[372135412,1752535839959,-460.0,0.00022191,3]
[372135414,1752535839968,-460.0,0.00022191,3]
[372135416,1752535839978,-460.0,0.00022191,3]
[372135418,1752535839988,-460.0,0.00022191,3]
[372135419,1752535839999,-460.0,0.00022191,3]
[372135421,1752535840008,-460.0,0.00022191,3]
[372135423,1752535840017,-460.0,0.00022191,3]
[372135425,1752535840027,-460.0,0.00022191,3]
[372135427,1752535840037,-460.0,0.00022191,3]
[372135429,1752535840048,-460.0,0.00022191,3]
[372135431,1752535840057,-460.0,0.00022191,3]
[372135433,1752535840070,-460.0,0.00022191,3]
[372135435,1752535840079,-460.0,0.00022191,3]
[372135437,1752535840090,-460.0,0.00022191,3]
[372135439,1752535840099,-207.72306818,0.00022191,3]
[372135441,1752535840109,-460.0,0.00022191,3]
[372135443,1752535840118,-460.0,0.00022191,3]
[372135445,1752535840128,-460.0,0.00022191,3]
[372135447,1752535840138,-460.0,0.00022191,3]
[372135448,1752535840147,-460.0,0.00022191,3]
[372135450,1752535840158,-461.32304311,0.00022191,3]
[372135452,1752535840168,-1083.24,0.00022191,3]
[372135454,1752535840177,-912.37,0.00022191,3]
[372135456,1752535840187,-460.0,0.00022191,3]
[372135458,1752535840197,-460.45,0.00022191,3]
[372135460,1752535840206,-460.0,0.00022191,3]
[372135463,1752535840216,-606.57,0.00022191,3]
[372135466,1752535840225,-432.45527726,0.00022191,3]
[372135467,1752535840235,-460.0,0.00022191,3]
[372135469,1752535840245,-460.0,0.00022191,3]
[372135471,1752535840256,-460.0,0.00022191,3]
[372135473,1752535840266,-460.0,0.00022191,3]
[372135475,1752535840275,-460.0,0.00022191,3]
[372135477,1752535840285,-460.0,0.00022191,3]
[372135479,1752535840295,-460.0,0.00022191,3]
[372135481,1752535840305,-1606.21,0.00022191,3]
[372135483,1752535840316,-460.0,0.00022191,3]
[372135485,1752535840325,-2115.15,0.00022191,3]
[372135486,1752535840336,-460.0,0.00022191,3]
[372135488,1752535840346,-460.0,0.00022191,3]
[372135490,1752535840355,-460.0,0.00022191,3]
[372135492,1752535840365,-460.0,0.00022191,3]
[372135494,1752535840375,-1275.78253247,0.00022191,3]
[372135530,1752535840739,-852.83326826,0.000219,6]
[372135532,1752535840749,-460.0,0.00021917,3]
[372135534,1752535840758,-188.32242622,0.00021917,3]
[372135815,1752535843732,-271.67757378,0.00021917,3]
[372135817,1752535843742,-460.0,0.00021917,3]
[372135819,1752535843751,-4612.36,0.00021917,3]
[372135821,1752535843760,-246.51308368,0.00022038,6]
[372136128,1752535846877,-460.0,0.00021917,3]
[372136130,1752535846886,-460.0,0.00021917,3]
[372136132,1752535846895,-460.0,0.00021917,3]
[372136134,1752535846909,-606.32018439,0.00022038,6]
[372136136,1752535846918,-852.83326807,0.00022176,6]
[372136138,1752535846927,-460.0,0.00022191,3]
[372136139,1752535846936,-460.0,0.00022191,3]
[372136141,1752535846946,-460.0,0.00022191,3]
[372136143,1752535846956,-460.0,0.00022191,3]
[372136145,1752535846965,-1544.94,0.00022191,3]
[372136147,1752535846975,-255.58024268,0.00022191,3]
[372138654,1752535945735,282.67453419,0.00026137,120]
[372138657,1752536053563,200.0,0.00027397,120]
[372138671,1752536637094,494.32,0.00024658,60]
[372138673,1752536730162,171.303317,0.00013699,2]
[372138674,1752536736090,-179.9820018,0.00018908,2]
[372138675,1752536736110,-357.17258613,0.00019991,2]
[372138676,1752536736134,-171.303317,0.00020187,2]
[372138677,1752536736154,-424.458054,0.00020913,2]
[372138678,1752536736178,-500.0,0.00021352,2]
[372138679,1752536736198,-45.77186496,0.00021612,2]
[372138680,1752536758101,-525.46609069,0.00021582,2]
[372138681,1752536758122,-230.73061749,0.00021612,2]
[372138682,1752536758144,-215.47013733,0.00021612,2]
[372138683,1752536758164,-160.0,0.00021612,2]
[372138684,1752536758192,-244.57596145,0.00021612,2]
[372138685,1752536844172,-3169.57604214,0.00021,2]
[372138686,1752536848085,-786.59140827,0.00021,2]
[372138687,1752536851082,-531.53994569,0.00021,2]
[372138688,1752536950093,-466.89264697,0.00019512,2]
[372138689,1752536954083,-300.0,0.00020999,2]
[372138690,1752536954103,-1004.50538754,0.00021,2]
[372138691,1752536955110,-949.05629445,0.00021,2]
[372138692,1752537015039,3402.42369832,0.000207,2]
[372138722,1752537032168,-59.05999397,0.00020971,2]
[372138724,1752537032184,-100.94000603,0.00020971,2]
[372138727,1752537032194,-525.46609069,0.00020985,2]
[372138728,1752537032204,-468.75,0.00020985,2]
[372138730,1752537032213,-45.72221032,0.00020999,2]
[372138777,1752537038174,-254.27778968,0.00020999,2]
[372138778,1752537038184,-5300.64919476,0.00021,2]
[372138779,1752537038303,-999.2486361,0.00021,2]
[372139026,1752537043075,-438.30177485,0.00021,2]
[372139028,1752537043087,-519.47999996,0.00021,2]
[372139038,1752537043184,-186.52086932,0.00021,2]
[372139041,1752537043195,-654.46,0.00021,2]
[372139043,1752537043211,-1183.44314408,0.00021,2]
[372139045,1752537043223,-332.4411603,0.00021,2]
[372139361,1752537046382,-87.39904536,0.00021,2]
[372139365,1752537046411,-9060.449544,0.00021,2]
[372139368,1752537046422,-503.83,0.00021,2]
[372142210,1752537084198,500.0,0.00024188,120]
[372142211,1752537084963,500.0,0.00024188,120]
[372142212,1752537085725,500.0,0.00024188,120]
[372142213,1752537086500,500.0,0.00024188,120]
[372142214,1752537087425,500.0,0.00024188,120]
[372142215,1752537088879,500.0,0.00024188,120]
[372142216,1752537089704,500.0,0.00024188,120]
[372142217,1752537090513,500.0,0.00024188,120]
[372142218,1752537091290,500.0,0.00024188,120]
[372142219,1752537092072,500.0,0.00024188,120]
[372142220,1752537092836,500.0,0.00024188,120]
[372142221,1752537094284,500.0,0.00024188,120]
[372142222,1752537097349,345.53,0.00024188,120]
[372142225,1752537632561,200.0,0.00026454,120]
[372142226,1752537691574,200.0,0.0002659,120]
[372142228,1752537751119,200.0,0.00025742,120]
[372142230,1752537923070,162.287352,0.00013699,2]
[372142231,1752538049080,-150.0,0.000198,2]
[372142232,1752538049101,-293.1079514,0.00019977,2]
[372142233,1752538049122,-339.566443,0.00020015,2]
[372142234,1752538049143,-162.287352,0.00020548,2]
[372142235,1752538049164,-525.46609069,0.00020844,2]